fUSD/lending_fUSD_20260630
["ID","MTS","AMOUNT","RATE_DAILY","PERIOD"]
[426735613,1782768639000,-151.0,0.0001491,2]
[426735615,1782768639000,-177.08377207,0.00014925,2]
[426735628,1782768639000,-151.0,0.00014999,2]
[426735614,1782768639000,-299.453797,0.0001491,2]
[426735619,1782768639000,-150.0,0.00014986,2]
[426735621,1782768639000,-271.59492068,0.00014986,2]
[426735620,1782768639000,-150.0,0.00014986,2]
[426735623,1782768639000,-49747.0,0.00014986,2]
[426735616,1782768639000,-689.27,0.00014986,2]
[426735622,1782768639000,-90009.0,0.00014986,2]
[426735618,1782768639000,-150.0,0.00014986,2]
[426735624,1782768639000,-495.12845064,0.0001499,2]
[426735654,1782768639000,-500.0,0.00014999,2]
[426735626,1782768639000,-495.12845064,0.0001499,2]
[426735617,1782768639000,-150.0,0.00014986,2]
[426735653,1782768639000,-500.0,0.00014999,2]
[426735625,1782768639000,-495.12845064,0.0001499,2]
[426735655,1782768639000,-500.0,0.00014999,2]
[426735685,1782768639000,-500.0,0.00014999,2]
[426735683,1782768639000,-500.0,0.00014999,2]
[426735686,1782768639000,-500.0,0.00014999,2]
[426735689,1782768639000,-500.0,0.00014999,2]
[426735688,1782768639000,-500.0,0.00014999,2]
[426735684,1782768639000,-500.0,0.00014999,2]
[426735687,1782768639000,-500.0,0.00014999,2]
[426735691,1782768639000,-500.0,0.00014999,2]
[426735690,1782768639000,-500.0,0.00014999,2]
[426735693,1782768639000,-500.0,0.00014999,2]
[426735692,1782768639000,-500.0,0.00014999,2]
[426735694,1782768639000,-500.0,0.00014999,2]
[426735698,1782768639000,-500.0,0.00014999,2]
[426735699,1782768639000,-500.0,0.00014999,2]
[426735695,1782768639000,-500.0,0.00014999,2]
[426735701,1782768639000,-500.0,0.00014999,2]
[426735700,1782768639000,-500.0,0.00014999,2]
[426735696,1782768639000,-500.0,0.00014999,2]
[426735697,1782768639000,-500.0,0.00014999,2]
[426735703,1782768639000,-500.0,0.00014999,2]
[426735702,1782768639000,-500.0,0.00014999,2]
[426735704,1782768639000,-500.0,0.00014999,2]
[426735652,1782768639000,-500.0,0.00014999,2]
[426735681,1782768639000,-500.0,0.00014999,2]
[426735682,1782768639000,-500.0,0.00014999,2]
[426735640,1782768639000,-500.0,0.00014999,2]
[426735680,1782768639000,-500.0,0.00014999,2]
[426735679,1782768639000,-151.0,0.00014999,2]
[426735659,1782768639000,-500.0,0.00014999,2]
[426735656,1782768639000,-500.0,0.00014999,2]
[426735657,1782768639000,-500.0,0.00014999,2]
[426735658,1782768639000,-500.0,0.00014999,2]
[426735661,1782768639000,-500.0,0.00014999,2]
[426735662,1782768639000,-500.0,0.00014999,2]
[426735663,1782768639000,-500.0,0.00014999,2]
[426735664,1782768639000,-500.0,0.00014999,2]
[426735665,1782768639000,-500.0,0.00014999,2]
[426735666,1782768639000,-500.0,0.00014999,2]
[426735660,1782768639000,-500.0,0.00014999,2]
[426735669,1782768639000,-500.0,0.00014999,2]
[426735667,1782768639000,-500.0,0.00014999,2]
[426735677,1782768639000,-500.0,0.00014999,2]
[426735678,1782768639000,-500.0,0.00014999,2]
[426735676,1782768639000,-500.0,0.00014999,2]
[426735672,1782768639000,-500.0,0.00014999,2]
[426735675,1782768639000,-500.0,0.00014999,2]
[426735674,1782768639000,-500.0,0.00014999,2]
[426735670,1782768639000,-500.0,0.00014999,2]
[426735671,1782768639000,-500.0,0.00014999,2]
[426735668,1782768639000,-500.0,0.00014999,2]
[426735673,1782768639000,-500.0,0.00014999,2]
[426735747,1782768640000,-689.27,0.00014999,2]
[426735745,1782768640000,-689.27,0.00014999,2]
[426735749,1782768640000,-689.27,0.00014999,2]
[426735740,1782768640000,-689.27,0.00014999,2]
[426735742,1782768640000,-689.27,0.00014999,2]
[426735738,1782768640000,-1875.057436,0.00014999,2]
[426735741,1782768640000,-689.27,0.00014999,2]
[426735737,1782768640000,-1875.057436,0.00014999,2]
[426735736,1782768640000,-1875.057436,0.00014999,2]
[426735734,1782768640000,-250.069761,0.00014999,2]
[426735739,1782768640000,-1875.057436,0.00014999,2]
[426735746,1782768640000,-689.27,0.00014999,2]
[426735757,1782768640000,-689.32014865,0.00014999,2]
[426735748,1782768640000,-689.27,0.00014999,2]
[426735750,1782768640000,-689.27,0.00014999,2]
[426735751,1782768640000,-151.0,0.00014999,2]
[426735753,1782768640000,-689.27,0.00014999,2]
[426735752,1782768640000,-689.27,0.00014999,2]
[426735754,1782768640000,-689.27,0.00014999,2]
[426735761,1782768640000,-300.0,0.00014999,2]
[426735755,1782768640000,-689.27,0.00014999,2]
[426735756,1782768640000,-689.27,0.00014999,2]
[426735760,1782768640000,-300.0,0.00014999,2]
[426735758,1782768640000,-151.0,0.00014999,2]
[426735732,1782768640000,-250.069761,0.00014999,2]
[426735744,1782768640000,-689.27,0.00014999,2]
[426735728,1782768640000,-500.0,0.00014999,2]
[426735720,1782768640000,-500.0,0.00014999,2]
[426735735,1782768640000,-273.48,0.00014999,2]
[426735705,1782768640000,-500.0,0.00014999,2]
[426735708,1782768640000,-500.0,0.00014999,2]
[426735707,1782768640000,-500.0,0.00014999,2]
[426735706,1782768640000,-500.0,0.00014999,2]
[426735709,1782768640000,-500.0,0.00014999,2]
[426735712,1782768640000,-500.0,0.00014999,2]
[426735711,1782768640000,-500.0,0.00014999,2]
[426735710,1782768640000,-612.13,0.00014999,2]
[426735714,1782768640000,-500.0,0.00014999,2]
[426735713,1782768640000,-500.0,0.00014999,2]
[426735716,1782768640000,-500.0,0.00014999,2]
[426735715,1782768640000,-500.0,0.00014999,2]
[426735733,1782768640000,-250.069761,0.00014999,2]
[426735717,1782768640000,-500.0,0.00014999,2]
[426735718,1782768640000,-500.0,0.00014999,2]
[426735762,1782768640000,-666.0,0.00014999,2]
[426735721,1782768640000,-500.0,0.00014999,2]
[426735722,1782768640000,-500.0,0.00014999,2]
[426735723,1782768640000,-500.0,0.00014999,2]
[426735725,1782768640000,-628.352876,0.00014999,2]
[426735724,1782768640000,-500.0,0.00014999,2]
[426735727,1782768640000,-500.0,0.00014999,2]
[426735726,1782768640000,-500.0,0.00014999,2]
[426735731,1782768640000,-250.069761,0.00014999,2]
[426735729,1782768640000,-500.0,0.00014999,2]
[426735730,1782768640000,-174.54,0.00014999,2]
[426735719,1782768640000,-500.0,0.00014999,2]
[426735759,1782768640000,-300.0,0.00014999,2]
[426735743,1782768640000,-689.27,0.00014999,2]
[426735764,1782768640000,-666.0,0.00014999,2]
[426735794,1782768640000,-200.0,0.00015455,2]
[426735796,1782768640000,-178.0,0.00015512,2]
[426735797,1782768640000,-200.0,0.00015609,2]
[426735798,1782768640000,-200.0,0.00015609,2]
[426735799,1782768640000,-200.0,0.00015609,2]
[426735800,1782768640000,-502.0,0.00015616,2]
[426735801,1782768640000,-500.0,0.00016438,2]
[426735804,1782768640000,-151.0,0.00016438,2]
[426735802,1782768640000,-500.0,0.00016438,2]
[426735806,1782768640000,-187.11836805,0.00016438,10]
[426735805,1782768640000,-155.027491,0.00016438,2]
[426735803,1782768640000,-214.36457203,0.00016438,2]
[426735795,1782768640000,-200.0,0.00015455,2]
[426735807,1782768640000,-3035.015411,0.00016438,2]
[426735809,1782768640000,-3035.015411,0.00016438,2]
[426735811,1782768640000,-3035.015411,0.00016438,2]
[426735816,1782768640000,-3035.015411,0.00016438,2]
[426735810,1782768640000,-3035.015411,0.00016438,2]
[426735815,1782768640000,-3035.015411,0.00016438,2]
[426735813,1782768640000,-3035.015411,0.00016438,2]
[426735817,1782768640000,-151.0,0.00016438,2]
[426735820,1782768640000,-218.23034,0.00016438,2]
[426735819,1782768640000,-151.0,0.00016438,2]
[426735818,1782768640000,-151.0,0.00016438,2]
[426735822,1782768640000,-229.884109,0.00016438,2]
[426735763,1782768640000,-300.0,0.00014999,2]
[426735808,1782768640000,-3035.015411,0.00016438,2]
[426735793,1782768640000,-200.0,0.00015455,2]
[426735821,1782768640000,-161.244745,0.00016438,2]
[426735791,1782768640000,-200.0,0.00015301,2]
[426735792,1782768640000,-200.0,0.00015301,2]
[426735769,1782768640000,-489.6469237,0.00015,2]
[426735770,1782768640000,-200.0,0.00015,2]
[426735771,1782768640000,-151.0,0.00015,2]
[426735768,1782768640000,-162.53,0.00015,2]
[426735773,1782768640000,-151.0,0.00015,2]
[426735774,1782768640000,-200.0,0.00015,2]
[426735766,1782768640000,-894.0,0.00015,2]
[426735767,1782768640000,-8609345.67920144,0.00015,2]
[426735772,1782768640000,-200.0,0.00015,2]
[426735775,1782768640000,-151.0,0.00015,2]
[426735777,1782768640000,-250.069761,0.00015,2]
[426735776,1782768640000,-153.268466,0.00015,2]
[426735765,1782768640000,-300.0,0.00014999,2]
[426735784,1782768640000,-1875.057436,0.00015,2]
[426735778,1782768640000,-250.069761,0.00015,2]
[426735790,1782768640000,-200.0,0.00015301,2]
[426735789,1782768640000,-200.0,0.0001515,2]
[426735787,1782768640000,-200.0,0.0001515,2]
[426735788,1782768640000,-200.0,0.0001515,2]
[426735786,1782768640000,-151.0,0.00015,2]
[426735785,1782768640000,-151.0,0.00015,2]
[426735783,1782768640000,-1875.057436,0.00015,2]
[426735779,1782768640000,-250.069761,0.00015,2]
[426735780,1782768640000,-250.069761,0.00015,2]
[426735782,1782768640000,-1875.057436,0.00015,2]
[426735781,1782768640000,-1875.057436,0.00015,2]
[426735867,1782768641000,-185.963335,0.00019178,2]
[426735862,1782768641000,-185.963335,0.00019178,2]
[426735865,1782768641000,-185.963335,0.00019178,2]
[426735861,1782768641000,-185.963335,0.00019178,2]
[426735855,1782768641000,-192.08612595,0.00019,2]
[426735858,1782768641000,-366.27966924,0.0001901,7]
[426735857,1782768641000,-795.91401044,0.00019,2]
[426735856,1782768641000,-3055.72055378,0.00019,2]
[426735854,1782768641000,-559.94595811,0.00019,2]
[426735853,1782768641000,-480.72873426,0.00018767,2]
[426735860,1782768641000,-185.963335,0.00019178,2]
[426735859,1782768641000,-151.0,0.00019178,2]
[426735869,1782768641000,-185.963335,0.00019178,2]
[426735863,1782768641000,-185.963335,0.00019178,2]
[426735866,1782768641000,-185.963335,0.00019178,2]
[426735868,1782768641000,-185.963335,0.00019178,2]
[426735870,1782768641000,-185.963335,0.00019178,2]
[426735871,1782768641000,-185.963335,0.00019178,2]
[426735874,1782768641000,-151.0,0.00019178,2]
[426735873,1782768641000,-151.0,0.00019178,2]
[426735877,1782768641000,-192.08612595,0.000192,2]
[426735875,1782768641000,-158.175411,0.00019178,2]
[426735872,1782768641000,-151.0,0.00019178,2]
[426735876,1782768641000,-559.94595811,0.000192,2]
[426735852,1782768641000,-501.0,0.00018518,3]
[426735878,1782768641000,-3055.72055378,0.000192,2]
[426735864,1782768641000,-185.963335,0.00019178,2]
[426735851,1782768641000,-2000.0,0.000185,2]
[426735837,1782768641000,-229.884109,0.00016438,2]
[426735848,1782768641000,-393.76,0.00018205,2]
[426735879,1782768641000,-795.91401044,0.000192,2]
[426735825,1782768641000,-229.884109,0.00016438,2]
[426735826,1782768641000,-229.884109,0.00016438,2]
[426735827,1782768641000,-229.884109,0.00016438,2]
[426735824,1782768641000,-229.884109,0.00016438,2]
[426735823,1782768641000,-229.884109,0.00016438,2]
[426735829,1782768641000,-229.884109,0.00016438,2]
[426735828,1782768641000,-229.884109,0.00016438,2]
[426735832,1782768641000,-229.884109,0.00016438,2]
[426735831,1782768641000,-229.884109,0.00016438,2]
[426735830,1782768641000,-229.884109,0.00016438,2]
[426735834,1782768641000,-229.884109,0.00016438,2]
[426735847,1782768641000,-1057.91184149,0.00018,2]
[426735833,1782768641000,-229.884109,0.00016438,2]
[426735835,1782768641000,-229.884109,0.00016438,2]
[426735839,1782768641000,-229.884109,0.00016438,2]
[426735840,1782768641000,-28860.28,0.00016474,2]
[426735838,1782768641000,-229.884109,0.00016438,2]
[426735841,1782768641000,-393.76,0.0001655,2]
[426735845,1782768641000,-501.0,0.00017759,2]
[426735843,1782768641000,-501.0,0.00017,2]
[426735844,1782768641000,-177.08377207,0.00017427,2]
[426735842,1782768641000,-480.72873426,0.00016783,2]
[426735846,1782768641000,-6065.11304374,0.00018,2]
[426735849,1782768641000,-485.26,0.00018372,2]
[426735850,1782768641000,-162.53,0.000184,2]
[426735836,1782768641000,-229.884109,0.00016438,2]
[426735890,1782768641000,-1000.0,0.00019636,2]
[426735920,1782768641000,-939.62517223,0.0002,2]
[426735883,1782768641000,-3055.72055378,0.000194,2]
[426735910,1782768641000,-403.21083539,0.0002,2]
[426735913,1782768641000,-1318.86632219,0.0002,2]
[426735916,1782768641000,-200.0,0.0002,2]
[426735917,1782768641000,-38041.25559767,0.0002,2]
[426735919,1782768641000,-52619.9708974,0.0002,2]
[426735926,1782768641000,-3055.72055378,0.0002,2]
[426735925,1782768641000,-194.0,0.0002,2]
[426735924,1782768641000,-184.01588541,0.0002,2]
[426735923,1782768641000,-5309.65719188,0.0002,2]
[426735918,1782768641000,-1064.59998034,0.0002,2]
[426735921,1782768641000,-13105.43702097,0.0002,2]
[426735927,1782768641000,-272.0,0.0002,2]
[426735912,1782768641000,-26923.0488516,0.0002,2]
[426735928,1782768641000,-321.0,0.0002,2]
[426735929,1782768641000,-181.0,0.0002,2]
[426735930,1782768641000,-501.0,0.0002,2]
[426735933,1782768641000,-151.0,0.0002,2]
[426735936,1782768641000,-232.0,0.0002,2]
[426735931,1782768641000,-153.0,0.0002,2]
[426735938,1782768641000,-151.0,0.0002,2]
[426735932,1782768641000,-151.0,0.0002,2]
[426735935,1782768641000,-204.0,0.0002,2]
[426735934,1782768641000,-616.0,0.0002,2]
[426735939,1782768641000,-151.0,0.0002,2]
[426735881,1782768641000,-559.94595811,0.000194,2]
[426735940,1782768641000,-151.0,0.0002,2]
[426735922,1782768641000,-18151.27854215,0.0002,2]
[426735911,1782768641000,-3950.0,0.0002,2]
[426735937,1782768641000,-155.163098,0.0002,2]
[426735908,1782768641000,-179.76215624,0.0002,2]
[426735915,1782768641000,-541.43445294,0.0002,2]
[426735882,1782768641000,-192.08612595,0.000194,2]
[426735885,1782768641000,-500.0,0.00019534,2]
[426735889,1782768641000,-795.91401044,0.000196,2]
[426735887,1782768641000,-192.08612595,0.000196,2]
[426735884,1782768641000,-795.91401044,0.000194,2]
[426735886,1782768641000,-559.94595811,0.000196,2]
[426735888,1782768641000,-3055.72055378,0.000196,2]
[426735892,1782768641000,-3055.72055378,0.000198,2]
[426735891,1782768641000,-559.94595811,0.000198,2]
[426735893,1782768641000,-795.91401044,0.000198,2]
[426735894,1782768641000,-1452.21166717,0.0001982,2]
[426735897,1782768641000,-393.76,0.0001986,2]
[426735896,1782768641000,-4454.61165466,0.00019822,2]
[426735880,1782768641000,-501.0,0.00019277,4]
[426735902,1782768641000,-300.0,0.00019999,2]
[426735903,1782768641000,-300.0,0.00019999,2]
[426735914,1782768641000,-3007.09826212,0.0002,7]
[426735906,1782768641000,-2334.2784488,0.0002,2]
[426735909,1782768641000,-26064.27256557,0.0002,2]
[426735905,1782768641000,-300.0,0.00019999,2]
[426735904,1782768641000,-666.0,0.00019999,2]
[426735907,1782768641000,-1562.22152476,0.0002,2]
[426735898,1782768641000,-151.0,0.00019997,2]
[426735895,1782768641000,-505.71071187,0.00019822,2]
[426735900,1782768641000,-300.0,0.00019999,2]
[426735901,1782768641000,-300.0,0.00019999,2]
[426735899,1782768641000,-151.0,0.00019997,2]
[426735979,1782768642000,-151.00001,0.00020548,2]
[426735978,1782768642000,-151.0,0.00020548,2]
[426735977,1782768642000,-150.0,0.00020547,2]
[426735975,1782768642000,-3055.72055378,0.000204,2]
[426735984,1782768642000,-480.72873426,0.0002075,2]
[426735973,1782768642000,-500.0,0.00020192,2]
[426735974,1782768642000,-3055.72055378,0.000202,2]
[426735968,1782768642000,-151.0,0.0002,2]
[426735971,1782768642000,-1381.0,0.00020133,5]
[426735972,1782768642000,-1109.0,0.00020133,5]
[426735976,1782768642000,-200.0,0.00020534,2]
[426735980,1782768642000,-598.6,0.00020548,2]
[426735989,1782768642000,-321.0,0.00021,2]
[426735983,1782768642000,-609.69328379,0.000207,2]
[426735981,1782768642000,-162.53,0.000206,2]
[426735985,1782768642000,-501.0,0.00020795,5]
[426735987,1782768642000,-194.0,0.00021,2]
[426735988,1782768642000,-272.0,0.00021,2]
[426735986,1782768642000,-3055.72055378,0.000208,2]
[426735990,1782768642000,-181.0,0.00021,2]
[426735992,1782768642000,-153.0,0.00021,2]
[426735993,1782768642000,-616.0,0.00021,2]
[426735995,1782768642000,-232.0,0.00021,2]
[426735970,1782768642000,-501.0,0.00020036,4]
[426735994,1782768642000,-204.0,0.00021,2]
[426735982,1782768642000,-3055.72055378,0.000206,2]
[426735967,1782768642000,-1875.057435,0.0002,2]
[426735953,1782768642000,-185.963335,0.0002,2]
[426735966,1782768642000,-1875.057436,0.0002,2]
[426735991,1782768642000,-501.0,0.00021,2]
[426735942,1782768642000,-153.375993,0.0002,2]
[426735941,1782768642000,-151.0,0.0002,2]
[426735943,1782768642000,-3035.015411,0.0002,2]
[426735944,1782768642000,-3035.015411,0.0002,2]
[426735945,1782768642000,-3035.015411,0.0002,2]
[426735946,1782768642000,-3035.015411,0.0002,2]
[426735950,1782768642000,-3035.015411,0.0002,2]
[426735949,1782768642000,-3035.015411,0.0002,2]
[426735947,1782768642000,-3035.015411,0.0002,2]
[426735948,1782768642000,-3035.015411,0.0002,2]
[426735951,1782768642000,-185.963335,0.0002,2]
[426735952,1782768642000,-185.963335,0.0002,2]
[426735954,1782768642000,-185.963335,0.0002,2]
[426735957,1782768642000,-185.963335,0.0002,2]
[426735955,1782768642000,-185.963335,0.0002,2]
[426735961,1782768642000,-250.069761,0.0002,2]
[426735956,1782768642000,-185.963335,0.0002,2]
[426735959,1782768642000,-250.069761,0.0002,2]
[426735958,1782768642000,-185.963344,0.0002,2]
[426735960,1782768642000,-250.069761,0.0002,2]
[426735962,1782768642000,-250.069754,0.0002,2]
[426735964,1782768642000,-1875.057436,0.0002,2]
[426735963,1782768642000,-2000.0,0.0002,7]
[426735969,1782768642000,-151.0,0.0002,2]
[426735965,1782768642000,-1875.057436,0.0002,2]
[426735996,1782768642000,-151.0,0.00021,2]
[426736042,1782768642000,-36245.82527023,0.000225,2]
[426735999,1782768642000,-151.0,0.00021,2]
[426736025,1782768642000,-2216.06705773,0.00022,2]
[426736029,1782768642000,-321.0,0.00022,2]
[426736028,1782768642000,-272.0,0.00022,2]
[426736031,1782768642000,-501.0,0.00022,2]
[426736032,1782768642000,-153.0,0.00022,2]
[426736037,1782768642000,-245.25568359,0.0002211,2]
[426736036,1782768642000,-521.16,0.00022,2]
[426736033,1782768642000,-616.0,0.00022,2]
[426736034,1782768642000,-204.0,0.00022,2]
[426736051,1782768642000,-321.0,0.00023,2]
[426736038,1782768642000,-501.0,0.00022313,6]
[426736040,1782768642000,-2000.0,0.000224,2]
[426736039,1782768642000,-200.0,0.00022386,2]
[426736035,1782768642000,-232.0,0.00022,2]
[426736043,1782768642000,-170.080228,0.000225,2]
[426736044,1782768642000,-394.890352,0.000225,2]
[426736048,1782768642000,-162.53,0.00023,7]
[426736054,1782768642000,-153.0,0.00023,2]
[426736045,1782768642000,-534.37131346,0.0002271,2]
[426736046,1782768642000,-480.72873426,0.00022733,2]
[426736050,1782768642000,-272.0,0.00023,2]
[426736052,1782768642000,-181.0,0.00023,2]
[426736047,1782768642000,-194.0,0.00023,2]
[426736053,1782768642000,-501.0,0.00023,2]
[426735997,1782768642000,-151.0,0.00021,2]
[426736020,1782768642000,-3035.015405,0.000215,2]
[426736026,1782768642000,-300.0,0.00022,2]
[426736041,1782768642000,-300.0,0.00022499,2]
[426736022,1782768642000,-186.0,0.0002175,2]
[426736027,1782768642000,-194.0,0.00022,2]
[426736001,1782768642000,-151.0,0.00021,2]
[426736002,1782768642000,-151.0,0.00021,2]
[426736000,1782768642000,-151.0,0.00021,2]
[426736003,1782768642000,-151.0,0.00021,2]
[426736006,1782768642000,-500.0,0.00021252,2]
[426736004,1782768642000,-2000.0,0.000212,2]
[426736005,1782768642000,-500.0,0.00021252,2]
[426736007,1782768642000,-4884.5594202,0.00021273,2]
[426736009,1782768642000,-300.0,0.00021499,2]
[426736008,1782768642000,-200.0,0.0002146,2]
[426736011,1782768642000,-300.0,0.00021499,2]
[426736010,1782768642000,-300.0,0.00021499,2]
[426735998,1782768642000,-151.0,0.00021,2]
[426736023,1782768642000,-5000.0,0.00021918,2]
[426736016,1782768642000,-151.0,0.000215,2]
[426736024,1782768642000,-150.0,0.00021918,2]
[426736030,1782768642000,-181.0,0.00022,2]
[426736021,1782768642000,-501.0,0.00021554,6]
[426736018,1782768642000,-3035.015411,0.000215,2]
[426736019,1782768642000,-3035.015411,0.000215,2]
[426736014,1782768642000,-226.58397681,0.000215,2]
[426736013,1782768642000,-58701.00305803,0.000215,2]
[426736015,1782768642000,-151.0,0.000215,2]
[426736012,1782768642000,-300.0,0.00021499,2]
[426736017,1782768642000,-3035.015411,0.000215,2]
[426736093,1782768643000,-501.0,0.00024,2]
[426736100,1782768643000,-521.16,0.00024529,7]
[426736095,1782768643000,-616.0,0.00024,2]
[426736094,1782768643000,-169.0,0.00024,2]
[426736092,1782768643000,-181.0,0.00024,2]
[426736082,1782768643000,-200.0,0.00023593,2]
[426736091,1782768643000,-321.0,0.00024,2]
[426736086,1782768643000,-3600.0,0.00024,2]
[426736088,1782768643000,-11216.173876,0.00024,2]
[426736097,1782768643000,-232.0,0.00024,2]
[426736090,1782768643000,-272.0,0.00024,2]
[426736085,1782768643000,-151.0,0.00023997,7]
[426736099,1782768643000,-150.0,0.00024164,2]
[426736115,1782768643000,-390.280005,0.00024658,2]
[426736101,1782768643000,-501.0,0.0002459,8]
[426736098,1782768643000,-1682.0,0.00024,7]
[426736102,1782768643000,-350.0,0.00024591,2]
[426736103,1782768643000,-1000.0,0.00024658,2]
[426736105,1782768643000,-151.0,0.00024658,2]
[426736106,1782768643000,-151.0,0.00024658,2]
[426736104,1782768643000,-151.0,0.00024658,2]
[426736107,1782768643000,-151.0,0.00024658,2]
[426736108,1782768643000,-151.0,0.00024658,2]
[426736111,1782768643000,-151.0,0.00024658,2]
[426736110,1782768643000,-151.0,0.00024658,2]
[426736114,1782768643000,-390.280005,0.00024658,2]
[426736096,1782768643000,-204.0,0.00024,2]
[426736089,1782768643000,-194.0,0.00024,2]
[426736058,1782768643000,-232.0,0.00023,2]
[426736084,1782768643000,-501.0,0.00023831,8]
[426736055,1782768643000,-616.0,0.00023,2]
[426736064,1782768643000,-177.91429623,0.00023581,2]
[426736066,1782768643000,-186.49336966,0.00023581,2]
[426736057,1782768643000,-204.0,0.00023,2]
[426736067,1782768643000,-150.44960289,0.00023581,2]
[426736061,1782768643000,-501.21584052,0.000232,2]
[426736063,1782768643000,-160.97623276,0.00023575,2]
[426736059,1782768643000,-150.0,0.00023014,2]
[426736062,1782768643000,-2000.0,0.00023333,7]
[426736060,1782768643000,-501.0,0.00023072,7]
[426736065,1782768643000,-166.72231941,0.00023581,2]
[426736068,1782768643000,-152.46560162,0.00023581,2]
[426736087,1782768643000,-1262.74696786,0.00024,2]
[426736070,1782768643000,-214.47785893,0.00023581,2]
[426736071,1782768643000,-150.43401545,0.00023581,2]
[426736075,1782768643000,-176.128605,0.00023581,2]
[426736072,1782768643000,-159.32584207,0.00023581,2]
[426736073,1782768643000,-173.9190935,0.00023581,2]
[426736076,1782768643000,-151.95666831,0.00023581,2]
[426736078,1782768643000,-191.72880362,0.00023581,2]
[426736079,1782768643000,-176.12894416,0.00023581,2]
[426736074,1782768643000,-190.83539254,0.00023581,2]
[426736077,1782768643000,-185.68593552,0.00023581,2]
[426736080,1782768643000,-158.34935922,0.00023581,2]
[426736083,1782768643000,-401.0,0.0002373,2]
[426736081,1782768643000,-150.37364914,0.00023581,2]
[426736069,1782768643000,-194.44439795,0.00023581,2]
[426736112,1782768643000,-275.934024,0.00024658,2]
[426736109,1782768643000,-151.0,0.00024658,2]
[426736116,1782768643000,-390.280005,0.00024658,2]
[426736156,1782768643000,-151.0,0.00024658,2]
[426736153,1782768643000,-151.0,0.00024658,2]
[426736157,1782768643000,-151.0,0.00024658,2]
[426736158,1782768643000,-151.0,0.00024658,2]
[426736154,1782768643000,-151.0,0.00024658,2]
[426736161,1782768643000,-151.0,0.00024658,2]
[426736165,1782768643000,-151.0,0.00024658,2]
[426736162,1782768643000,-151.0,0.00024658,2]
[426736164,1782768643000,-238.408824,0.00024658,2]
[426736163,1782768643000,-151.0,0.00024658,2]
[426736169,1782768643000,-151.0,0.00024658,2]
[426736166,1782768643000,-151.0,0.00024658,2]
[426736167,1782768643000,-151.0,0.00024658,2]
[426736168,1782768643000,-151.0,0.00024658,2]
[426736171,1782768643000,-277.297046,0.00024658,2]
[426736172,1782768643000,-350.0,0.00024699,2]
[426736170,1782768643000,-151.0,0.00024658,2]
[426736173,1782768643000,-3635.0,0.000247,2]
[426736174,1782768643000,-500.0,0.00024712,2]
[426736177,1782768643000,-1554.54082,0.0002475,2]
[426736178,1782768643000,-505.71071187,0.00024754,2]
[426736179,1782768643000,-4454.61165466,0.00024754,2]
[426736180,1782768643000,-1452.21166717,0.00024754,2]
[426736181,1782768643000,-200.0,0.00024799,2]